bitfinex-derivatives/quotes_BTCF0:USTF0_20250322
["timestamp","ask_amount","ask_price","bid_price","bid_amount"]
[1742673335348,0.4264514,84224.0,84223.0,0.06517493]
[1742673335538,0.7872514,84224.0,84223.0,0.06577493]
[1742673335735,0.4264514,84224.0,84223.0,0.06517493]
[1742673335936,0.4264514,84224.0,84223.0,0.06577493]
[1742673336131,0.7872514,84224.0,84223.0,0.06577493]
[1742673336331,0.7872514,84224.0,84223.0,0.06517493]
[1742673336530,0.4264514,84224.0,84223.0,0.06633493]
[1742673336742,0.7872514,84224.0,84223.0,0.06633493]
[1742673339237,0.7872514,84224.0,84223.0,0.06517493]
[1742673340649,0.7872514,84224.0,84223.0,0.06577493]
[1742673346142,0.7872514,84224.0,84223.0,0.06517493]
[1742673346341,0.7872514,84224.0,84223.0,0.06577493]
[1742673346943,0.81017863,84224.0,84223.0,0.06577493]
[1742673347450,0.7872514,84224.0,84223.0,0.06577493]
[1742673348543,0.81017863,84224.0,84223.0,0.06577493]
[1742673348946,0.47268944,84224.0,84223.0,0.06577493]
[1742673349450,0.47268944,84224.0,84223.0,0.06517493]
[1742673350347,0.47268944,84224.0,84223.0,0.06581493]
[1742673350655,0.47268944,84224.0,84223.0,0.06517493]
[1742673353755,0.44937863,84224.0,84223.0,0.06517493]
[1742673354046,0.4264514,84224.0,84223.0,0.06517493]
[1742673355446,0.3138914,84224.0,84223.0,0.06517493]
[1742673355654,0.4262514,84224.0,84223.0,0.06577493]
[1742673355855,0.4262514,84224.0,84223.0,0.06517493]
[1742673356453,0.4262514,84224.0,84223.0,0.06577493]
[1742673357855,0.4262514,84224.0,84223.0,0.06517493]
[1742673360749,0.4262514,84224.0,84223.0,0.06581493]
[1742673361351,0.4262514,84224.0,84223.0,0.06517493]
[1742673361753,0.44967234,84224.0,84223.0,0.06517493]
[1742673361959,0.4730027,84224.0,84223.0,0.06517493]
[1742673362160,0.4730027,84224.0,84223.0,0.06577493]
[1742673365562,0.4730027,84224.0,84223.0,0.06517493]
[1742673365963,0.44967234,84224.0,84223.0,0.06517493]
[1742673366157,0.44967234,84224.0,84223.0,0.06585493]
[1742673366364,0.47300671,84224.0,84223.0,0.06585493]
[1742673366564,0.44958577,84224.0,84223.0,0.06517493]
[1742673367058,0.4262514,84224.0,84223.0,0.06517493]
[1742673368068,0.4262514,84224.0,84223.0,0.06577493]
[1742673368260,0.4262514,84224.0,84223.0,0.06517493]
[1742673369363,0.4262514,84224.0,84223.0,0.06577493]
[1742673369765,0.4262514,84224.0,84223.0,0.06517493]
[1742673371358,0.4262514,84224.0,84223.0,0.06577493]
[1742673371566,0.4262514,84224.0,84223.0,0.06517493]
[1742673375467,0.4262514,84224.0,84223.0,0.03477493]
[1742673376071,0.44990394,84224.0,84223.0,0.03477493]
[1742673376757,0.47355688,84224.0,84223.0,0.03477493]
[1742673379763,0.47355688,84224.0,84223.0,0.03377493]
[1742673379972,0.47355688,84224.0,84223.0,0.03477493]
[1742673380460,0.81070434,84224.0,84223.0,0.03477493]
[1742673380865,0.83435688,84224.0,84223.0,0.03477493]
[1742673382374,0.47355688,84224.0,84223.0,0.03477493]
[1742673382672,0.81070434,84224.0,84223.0,0.03597493]
[1742673382867,0.83435688,84224.0,84223.0,0.03477493]
[1742673383071,0.81070394,84224.0,84223.0,0.03477493]
[1742673383571,0.4262514,84224.0,84223.0,0.03477493]
[1742673383777,0.7870514,84224.0,84223.0,0.03589493]
[1742673383978,0.7870514,84224.0,84223.0,0.03477493]
[1742673384670,0.4262514,84224.0,84223.0,0.03477493]
[1742673384877,0.7870514,84224.0,84223.0,0.03545493]
[1742673385073,0.7870514,84224.0,84223.0,0.03477493]
[1742673385769,0.4262514,84224.0,84223.0,0.03477493]
[1742673385982,0.7870514,84224.0,84223.0,0.03537493]
[1742673386174,0.7870514,84224.0,84223.0,0.03477493]
[1742673387563,0.7870514,84224.0,84223.0,0.03537493]
[1742673387765,0.7870514,84224.0,84223.0,0.03477493]
[1742673389472,0.81070394,84224.0,84223.0,0.03537493]
[1742673390081,0.7870514,84224.0,84223.0,0.03537493]
[1742673393176,0.4262514,84224.0,84223.0,0.03537493]
[1742673393373,0.7870514,84224.0,84223.0,0.03537493]
[1742673394479,0.4262514,84224.0,84223.0,0.03537493]
[1742673394673,0.7870514,84224.0,84223.0,0.15412863]
[1742673395183,0.7870514,84224.0,84223.0,0.18542863]
[1742673398982,0.4262514,84224.0,84223.0,0.18542863]
[1742673400988,0.4262514,84224.0,84223.0,0.06667493]
[1742673401780,0.4262514,84224.0,84223.0,0.18542863]
[1742673402684,0.4262514,84224.0,84223.0,0.06667493]
[1742673403079,0.4262514,84224.0,84223.0,0.18542863]
[1742673409784,0.4262514,84224.0,84223.0,0.06667493]
[1742673411885,0.4262514,84224.0,84223.0,0.18542863]
[1742673412700,0.4262514,84224.0,84223.0,0.06667493]
[1742673414303,0.4262514,84224.0,84223.0,0.18542863]
[1742673414493,0.4262514,84224.0,84223.0,0.06667493]
[1742673415999,0.4262514,84224.0,84223.0,0.18542863]
[1742673417292,0.4262514,84224.0,84223.0,0.06667493]
[1742673417492,0.4262514,84224.0,84223.0,0.06607493]
[1742673417992,0.4262514,84224.0,84223.0,0.06675493]
[1742673422806,0.4262514,84224.0,84223.0,0.18550863]
[1742673423194,0.4262514,84224.0,84223.0,0.06675493]
[1742673425506,0.4262514,84224.0,84223.0,0.03545493]
[1742673425701,0.4262514,84224.0,84223.0,0.03477493]
[1742673425900,0.4262514,84224.0,84223.0,0.03589493]
[1742673426709,0.4262514,84224.0,84223.0,0.15464863]
[1742673426895,0.4262514,84224.0,84223.0,0.03589493]
[1742673427299,0.4262514,84224.0,84223.0,0.06609493]
[1742673428401,0.4262514,84224.0,84223.0,0.06497493]
[1742673429611,0.7870514,84224.0,84223.0,0.06561493]
[1742673432510,0.3074991,84224.0,84223.0,0.18436863]
[1742673432811,0.4262514,84224.0,84223.0,0.06561493]
[1742673433108,0.4262514,84224.0,84223.0,0.06497493]
[1742673433410,0.4262514,84224.0,84223.0,0.06557493]
[1742673435605,0.4262514,84224.0,84223.0,0.06497493]
[1742673438415,0.4262514,84224.0,84223.0,0.06557493]
[1742673438913,0.4262514,84224.0,84223.0,0.06497493]
[1742673439409,0.4262514,84224.0,84223.0,0.06557493]
[1742673439805,0.4262514,84224.0,84223.0,0.06497493]
[1742673440906,0.4262514,84224.0,84223.0,0.06561493]
[1742673441309,0.4262514,84224.0,84223.0,0.06497493]
[1742673441611,0.4262514,84224.0,84223.0,0.03477493]
[1742673442811,0.4262514,84224.0,84223.0,0.03545493]
[1742673443319,0.4262514,84224.0,84223.0,0.03477493]
[1742673444309,0.4262514,84224.0,84223.0,0.03537493]
[1742673444511,0.4262514,84224.0,84223.0,0.03477493]
[1742673447922,0.4262514,84224.0,84223.0,0.03537493]
[1742673448122,0.4262514,84224.0,84223.0,0.03477493]
[1742673449214,0.4262514,84224.0,84223.0,0.03537493]
[1742673449415,0.4262514,84224.0,84223.0,0.03477493]
[1742673454017,0.4262514,84224.0,84223.0,0.00147493]
[1742673460524,0.4262514,84224.0,84223.0,0.06657493]
[1742673464935,0.4262514,84224.0,84223.0,0.06717493]
[1742673465530,0.4262514,84224.0,84223.0,0.06657493]
[1742673465737,0.4262514,84224.0,84223.0,0.06717493]
[1742673467039,0.4262514,84224.0,84223.0,0.06657493]
[1742673467939,0.7870514,84224.0,84223.0,0.06657493]
[1742673468139,0.7870514,84224.0,84223.0,0.06717493]
[1742673474045,0.4262514,84224.0,84223.0,0.06717493]
[1742673474348,0.7870514,84224.0,84223.0,0.06717493]
[1742673474742,0.4262514,84224.0,84223.0,0.06717493]
[1742673474936,0.7870514,84224.0,84223.0,0.06717493]
[1742673475141,0.7870514,84224.0,84223.0,0.06657493]
[1742673477654,0.4262514,84224.0,84223.0,0.06657493]
[1742673477955,0.7870514,84224.0,84223.0,0.06717493]
[1742673478159,0.7870514,84224.0,84223.0,0.06657493]
[1742673479247,0.4262514,84224.0,84223.0,0.06657493]
[1742673479447,0.7870514,84224.0,84223.0,0.06725493]
[1742673479650,0.7870514,84224.0,84223.0,0.06657493]
[1742673480158,0.7870514,84224.0,84223.0,0.06773493]
[1742673481044,0.7870514,84224.0,84223.0,0.06657493]
[1742673481248,0.7870514,84224.0,84223.0,0.06773493]
[1742673481449,0.7870514,84224.0,84223.0,0.06657493]
[1742673482160,0.7870514,84224.0,84223.0,0.06717493]
[1742673482460,0.7870514,84224.0,84223.0,0.06657493]
[1742673484252,0.7870514,84224.0,84223.0,0.06721493]
[1742673485055,0.6682991,84224.0,84223.0,0.06721493]
[1742673485248,0.3074991,84224.0,84223.0,0.21722863]
[1742673485448,0.3074591,84224.0,84223.0,0.21790863]
[1742673485856,0.4262114,84224.0,84223.0,0.21790863]
[1742673486359,0.4262114,84224.0,84223.0,0.21690863]
[1742673486560,0.4262114,84224.0,84223.0,0.21790863]
[1742673490261,0.3138914,84224.0,84223.0,0.21790863]
[1742673490462,0.1640391,84224.0,84223.0,0.57870863]
[1742673490661,0.93069193,84241.0,84230.0,0.1187439]
[1742673490662,0.1187428,84231.0,84230.0,0.1187439]
[1742673490963,0.11891901,84232.0,84231.0,0.1187425]
[1742673491260,0.11891901,84232.0,84231.0,0.0304]
[1742673491467,0.25003608,84232.0,84231.0,0.031]
[1742673491963,0.28023608,84232.0,84231.0,0.1497425]
[1742673492772,0.28223608,84232.0,84231.0,0.1497425]
[1742673493564,0.28423608,84232.0,84231.0,0.1497425]
[1742673494160,0.28323608,84232.0,84231.0,0.1497425]
[1742673494463,0.16249508,84232.0,84231.0,0.1497425]
[1742673494663,0.13429508,84232.0,84231.0,0.1497425]
[1742673496168,0.25303608,84232.0,84231.0,0.1497425]
[1742673506169,0.25303608,84232.0,84231.0,0.1824425]
[1742673506170,0.31413608,84232.0,84231.0,0.1824425]
[1742673509271,0.19539508,84232.0,84231.0,0.1824425]
[1742673511582,0.31413608,84232.0,84231.0,0.00068]
[1742673511781,0.31413608,84232.0,84231.0,8e-05]
[1742673514179,0.67493608,84232.0,84231.0,8e-05]
[1742673514980,0.31413608,84232.0,84231.0,8e-05]
[1742673515180,0.67493608,84232.0,84231.0,8e-05]
[1742673520893,0.31413608,84232.0,84231.0,8e-05]
[1742673521103,0.67493608,84232.0,84231.0,8e-05]
[1742673521298,0.31413608,84232.0,84231.0,8e-05]
[1742673521504,0.67493608,84232.0,84231.0,8e-05]
[1742673536811,0.31413608,84232.0,84231.0,8e-05]
[1742673537016,0.67493608,84232.0,84231.0,8e-05]
[1742673540011,0.67493608,84232.0,84231.0,0.03298]
[1742673542415,0.31413608,84232.0,84231.0,0.03298]
[1742673542621,0.67493608,84232.0,84231.0,0.03298]
[1742673547017,0.31413608,84232.0,84231.0,0.03298]
[1742673547325,0.67493608,84232.0,84231.0,0.03366]
[1742673547915,0.67493608,84232.0,84231.0,0.06616]
[1742673548116,0.67493608,84232.0,84231.0,0.09696]
[1742673549715,0.67493608,84232.0,84231.0,0.09628]
[1742673551129,0.31413608,84232.0,84231.0,0.09628]
[1742673551327,0.31413608,84232.0,84231.0,0.09688]
[1742673551929,0.31413608,84232.0,84231.0,0.09628]
[1742673552626,0.31413608,84232.0,84231.0,0.06548]
[1742673552831,0.31413608,84232.0,84231.0,0.06608]
[1742673553333,0.31413608,84232.0,84231.0,0.06548]
[1742673553828,0.31413608,84232.0,84231.0,0.06608]
[1742673554020,0.31413608,84232.0,84231.0,0.06548]
[1742673554629,0.42641608,84232.0,84231.0,0.1842225]
[1742673554861,0.31413608,84232.0,84231.0,0.1842225]
[1742673555032,0.42641608,84232.0,84231.0,0.1848225]
[1742673558127,0.42641608,84232.0,84231.0,0.06608]
[1742673558625,0.42641608,84232.0,84231.0,0.06548]
[1742673559926,0.42641608,84232.0,84231.0,0.1842225]
[1742673560134,0.42641608,84232.0,84231.0,0.1848225]
[1742673563430,0.31413608,84232.0,84231.0,0.1848225]
[1742673563629,0.42641608,84232.0,84231.0,0.1848225]
[1742673565129,0.42541608,84232.0,84231.0,0.1848225]
[1742673565325,0.42341608,84232.0,84231.0,0.1878225]
[1742673565529,0.31113608,84232.0,84231.0,0.1908225]
[1742673565730,0.42341608,84232.0,84231.0,0.1908225]
[1742673565941,0.42341608,84232.0,84231.0,0.1868225]
[1742673566141,0.42341608,84232.0,84231.0,0.07108]
[1742673566339,0.42341608,84232.0,84231.0,0.07048]
[1742673566944,0.42341608,84232.0,84231.0,0.1892225]
[1742673567136,0.42341608,84232.0,84231.0,0.1898225]
[1742673567443,0.42341608,84232.0,84231.0,0.071]
[1742673567944,0.45411608,84232.0,84231.0,0.071]
[1742673568640,0.45411608,84232.0,84231.0,0.1897425]
[1742673568839,0.45411608,84232.0,84231.0,0.071]
[1742673569141,0.45411608,84232.0,84231.0,0.0704]
[1742673569345,0.45411608,84232.0,84231.0,0.0674]
[1742673569544,0.45411608,84232.0,84231.0,0.07116]
[1742673569949,0.45411608,84232.0,84231.0,0.07216]
[1742673570146,0.45411608,84232.0,84231.0,0.06916]
[1742673570544,0.45411608,84232.0,84231.0,0.07116]
[1742673572147,0.45411608,84232.0,84231.0,0.07016]
[1742673573151,0.45411608,84232.0,84231.0,0.07316]
[1742673573651,0.45411608,84232.0,84231.0,0.07216]
[1742673574244,0.45411608,84232.0,84231.0,0.07016]
[1742673575347,0.45411608,84232.0,84231.0,0.06716]
[1742673575549,0.45411608,84232.0,84231.0,0.06816]
[1742673578150,0.34183608,84232.0,84231.0,0.06816]
[1742673578355,0.45411608,84232.0,84231.0,0.06816]
[1742673588565,0.45411608,84232.0,84231.0,0.06916]
[1742673592564,0.45411608,84232.0,84231.0,0.06816]
[1742673592868,0.45411608,84232.0,84231.0,0.06916]
[1742673596268,0.45411608,84232.0,84231.0,0.06616]
[1742673596469,0.45411608,84232.0,84231.0,0.06916]
[1742673596861,0.45411608,84232.0,84231.0,0.06816]
[1742673597064,0.45411608,84232.0,84231.0,0.06916]
[1742673599476,0.45411608,84232.0,84231.0,0.06716]
[1742673599663,0.45411608,84232.0,84231.0,0.06816]
[1742673601174,0.45411608,84232.0,84231.0,0.06716]
[1742673601374,0.45411608,84232.0,84231.0,0.06816]
[1742673602368,0.45411608,84232.0,84231.0,0.00276]
[1742673602779,0.45411608,84232.0,84231.0,0.00076]
[1742673603083,0.45411608,84232.0,84231.0,0.00276]
[1742673603780,0.45411608,84232.0,84231.0,0.00284]
[1742673604081,0.45411608,84232.0,84231.0,0.00184]
[1742673604277,0.45411608,84232.0,84231.0,0.00284]
[1742673606378,0.45411608,84232.0,84231.0,0.00184]
[1742673606571,0.45411608,84232.0,84231.0,0.00284]
[1742673611578,0.45411608,84232.0,84231.0,0.00184]
[1742673612282,0.45411608,84232.0,84231.0,0.00284]
[1742673612983,0.45411608,84232.0,84231.0,0.00184]
[1742673613171,0.45411608,84232.0,84231.0,0.00284]
[1742673613771,0.45411608,84232.0,84231.0,0.00184]
[1742673614181,0.45411608,84232.0,84231.0,0.00108]
[1742673614383,0.45411608,84232.0,84231.0,0.00168]
[1742673615882,0.45411608,84232.0,84231.0,0.03308]
[1742673616372,0.45411608,84232.0,84231.0,0.03208]
[1742673621582,0.30467508,84232.0,84231.0,0.1508225]
[1742673621883,0.27437508,84232.0,84231.0,0.1835225]
[1742673622397,0.27437508,84232.0,84231.0,0.2151225]
[1742673622587,0.39311608,84232.0,84231.0,0.2151225]
[1742673622887,0.39311608,84232.0,84231.0,0.09638]
[1742673623485,0.39311608,84232.0,84231.0,0.11138201]
[1742673623687,0.39311608,84232.0,84231.0,0.11338201]
[1742673623989,0.39311608,84232.0,84231.0,0.11438201]
[1742673625782,0.39311608,84232.0,84231.0,0.23312451]
[1742673625972,0.39311608,84232.0,84231.0,0.2161225]
[1742673626173,0.36231608,84232.0,84231.0,0.2181225]
[1742673626679,0.25003608,84232.0,84231.0,0.2181225]
[1742673627377,0.25003608,84232.0,84231.0,0.09938]
[1742673627974,0.28003608,84232.0,84231.0,0.09938]
[1742673628381,0.16129508,84232.0,84231.0,0.09938]
[1742673628689,0.28003608,84232.0,84231.0,0.09938]
[1742673628887,0.28003608,84232.0,84231.0,0.2181225]
[1742673629391,0.28003608,84232.0,84231.0,0.09938]
[1742673629900,0.16129508,84232.0,84231.0,0.2181225]
[1742673630689,0.19209508,84232.0,84231.0,0.2181225]
[1742673631486,0.31083608,84232.0,84231.0,0.2171225]
[1742673632283,0.31083608,84232.0,84231.0,0.09838]
[1742673641097,0.31083608,84232.0,84231.0,0.09738]
[1742673641298,0.31083608,84232.0,84231.0,0.09838]
[1742673642390,0.31083608,84232.0,84231.0,0.09938]
[1742673643996,0.31083608,84232.0,84231.0,0.09738]
[1742673644192,0.31083608,84232.0,84231.0,0.09838]
[1742673644791,0.29921071,84232.0,84231.0,0.06568]
[1742673644997,0.29921071,84232.0,84231.0,0.06668]
[1742673645302,0.29921071,84232.0,84231.0,0.08174882]
[1742673645505,0.18046971,84232.0,84231.0,0.08174882]
[1742673645803,0.14822103,84695.0,84236.0,0.0593677]
[1742673645804,0.3608,84244.0,84236.0,0.0593677]
[1742673646004,0.11224,84248.0,84247.0,0.1187199]
[1742673646192,0.13281886,84250.0,84249.0,0.1187171]
[1742673646393,0.01410276,84250.0,84249.0,0.1187171]
[1742673646595,0.11224,84252.0,84249.0,0.0593578]
[1742673646798,0.23742415,84250.0,84249.0,0.1217578]
[1742673646994,0.23802416,84250.0,84249.0,0.1223578]
[1742673647199,0.1187157,84250.0,84249.0,0.1217578]
[1742673647408,0.23741076,84250.0,84249.0,0.1217578]
[1742673647608,0.23741076,84250.0,84249.0,0.0624]
[1742673647907,0.24141076,84250.0,84249.0,0.0624]
[1742673648294,0.24141076,84250.0,84249.0,0.1811171]
[1742673648908,0.30291076,84250.0,84249.0,0.1811171]
[1742673649404,0.30591076,84250.0,84249.0,0.1811171]
[1742673650600,0.3608,84270.0,84249.0,0.1811171]
[1742673650804,0.11264,84264.0,84257.0,0.1187058]
[1742673651001,0.11264,84264.0,84257.0,0.1821058]
[1742673651600,0.11264,84264.0,84257.0,0.1827058]
[1742673651803,0.0004,84264.0,84263.0,0.1186974]
[1742673652002,0.0004,84264.0,84263.0,0.1192974]
[1742673652202,0.00100001,84264.0,84263.0,0.1192974]
[1742673652512,0.11967535,84264.0,84263.0,0.1838974]
[1742673652812,0.14997535,84264.0,84263.0,0.1838974]
[1742673653696,0.27267135,84264.0,84263.0,0.1838974]
[1742673654710,0.15397535,84264.0,84263.0,0.1838974]
[1742673655602,0.27267135,84264.0,84263.0,0.1838974]
[1742673655802,0.15397535,84264.0,84263.0,0.1838974]
[1742673656213,0.30327135,84264.0,84263.0,0.1838974]
[1742673657015,0.18457535,84264.0,84263.0,0.1838974]
[1742673657219,0.30327135,84264.0,84263.0,0.1838974]
[1742673657509,0.18457535,84264.0,84263.0,0.0652]
[1742673657716,0.30327135,84264.0,84263.0,0.0652]
[1742673657907,0.30327135,84264.0,84263.0,0.0646]
[1742673659008,0.30327135,84264.0,84263.0,0.0652]
[1742673663920,0.30327135,84264.0,84263.0,0.0006]
[1742673664417,0.30327135,84264.0,84258.0,0.033]
[1742673664418,0.118703,84259.0,84258.0,0.033]
[1742673664723,0.231583,84259.0,84258.0,0.0336]
[1742673665114,0.35025834,84259.0,84258.0,0.0336]
[1742673665315,0.41125834,84259.0,84258.0,0.0336]
[1742673665517,0.41425834,84259.0,84258.0,0.0336]
[1742673666320,0.41825834,84259.0,84258.0,0.0336]
[1742673667441,0.41825834,84259.0,84258.0,0.0006]
[1742673667814,0.41825834,84259.0,84258.0,0.00068]
[1742673668214,0.41825834,84259.0,84258.0,8e-05]
[1742673669623,0.1187199,84247.0,84246.0,0.0314]
[1742673669926,0.5923999,84247.0,84246.0,0.032]
[1742673670314,0.71108228,84247.0,84246.0,0.032]
[1742673670516,0.77358228,84247.0,84246.0,0.032]
[1742673671029,0.77758228,84247.0,84246.0,0.032]
[1742673671714,0.77758228,84247.0,84246.0,0.0314]
[1742673681134,0.77758228,84247.0,84246.0,0.0632]
[1742673681329,0.77758228,84247.0,84246.0,0.0314]
[1742673683332,0.77758228,84247.0,84246.0,0.0636]
[1742673683534,0.77758228,84247.0,84246.0,0.0314]
[1742673683927,0.1187213,84246.0,84245.0,8e-05]
[1742673684134,0.11932131,84246.0,84245.0,8e-05]
[1742673684335,0.18192131,84246.0,84245.0,8e-05]
[1742673684534,0.118727,84242.0,84241.0,0.00017801]
[1742673684728,0.11932701,84242.0,84241.0,0.00017801]
[1742673685238,0.23802771,84242.0,84241.0,0.00017801]
[1742673685437,0.30062771,84242.0,84241.0,0.00017801]
[1742673685634,0.31470482,84242.0,84241.0,0.00017801]
[1742673687132,0.31570482,84242.0,84241.0,0.00017801]
[1742673687439,0.31670482,84242.0,84241.0,0.00017801]
[1742673700951,0.67750482,84242.0,84241.0,0.00017801]
[1742673710546,0.67760482,84242.0,84241.0,0.00017801]
[1742673710747,0.64500482,84242.0,84241.0,0.00017801]
[1742673711741,0.64500482,84242.0,84241.0,0.00081801]
[1742673711957,0.64500482,84242.0,84241.0,0.00017801]
[1742673721259,0.67710482,84242.0,84241.0,0.00017801]
[1742673727860,0.31630482,84242.0,84241.0,0.00017801]
[1742673728061,0.67710482,84242.0,84241.0,0.00017801]
[1742673728955,0.31630482,84242.0,84241.0,0.00017801]
[1742673729160,0.67710482,84242.0,84241.0,0.00017801]
[1742673741168,0.31630482,84242.0,84241.0,0.00017801]
[1742673741370,0.67710482,84242.0,84241.0,0.00017801]
[1742673748672,0.31630482,84242.0,84241.0,0.00017801]
[1742673748873,0.67710482,84242.0,84241.0,0.00017801]
[1742673751773,0.31630482,84242.0,84241.0,0.00017801]
[1742673752070,0.67710482,84242.0,84241.0,0.00017801]
[1742673752573,0.31630482,84242.0,84241.0,0.00017801]
[1742673752770,0.67710482,84242.0,84241.0,0.00017801]
[1742673762680,0.31630482,84242.0,84241.0,0.00017801]
[1742673762881,0.67710482,84242.0,84241.0,0.00017801]
[1742673769786,0.31630482,84242.0,84241.0,0.00017801]
[1742673769985,0.67710482,84242.0,84241.0,0.00017801]
[1742673777693,0.31630482,84242.0,84241.0,0.00017801]
[1742673777894,0.67710482,84242.0,84241.0,0.00017801]
[1742673782000,0.61490482,84242.0,84241.0,0.00017801]
[1742673782405,0.61490482,84242.0,84241.0,0.00077801]
[1742673782906,0.61490482,84242.0,84241.0,0.00017801]
[1742673783090,0.61490482,84242.0,84241.0,0.00081801]
[1742673783292,0.61490482,84242.0,84241.0,0.00017801]
[1742673783702,0.64750482,84242.0,84241.0,0.00017801]
[1742673784498,0.28670482,84242.0,84241.0,0.00017801]
[1742673784700,0.64750482,84242.0,84241.0,0.00017801]
[1742673788397,0.28670482,84242.0,84241.0,0.00017801]
[1742673788593,0.36594482,84242.0,84241.0,0.00077801]
[1742673788798,0.36494482,84242.0,84241.0,0.06347801]
[1742673789198,0.13337782,84242.0,84241.0,0.06347801]
[1742673789398,0.24721782,84242.0,84241.0,0.18220641]
[1742673789608,0.36694482,84242.0,84241.0,0.18220641]
[1742673790008,0.36594482,84242.0,84241.0,0.18220641]
[1742673790308,0.36494482,84242.0,84241.0,0.06547801]
[1742673791699,0.36494482,84242.0,84241.0,0.06447801]
[1742673791906,0.36494482,84242.0,84241.0,0.06547801]
[1742673792301,0.36494482,84242.0,84241.0,0.06447801]
[1742673801911,0.36594482,84242.0,84241.0,0.06447801]
[1742673802522,0.36494482,84242.0,84241.0,0.06447801]
[1742673802716,0.36594482,84242.0,84241.0,0.06447801]
[1742673803123,0.36494482,84242.0,84241.0,0.06447801]
[1742673803317,0.36594482,84242.0,84241.0,0.06447801]
[1742673805021,0.39754482,84242.0,84241.0,0.06447801]
[1742673805419,0.27781782,84242.0,84241.0,0.06447801]
[1742673805619,0.24721782,84242.0,84241.0,0.18320641]
[1742673805819,0.36594482,84242.0,84241.0,0.18320641]
[1742673806514,0.36594482,84242.0,84241.0,0.06447801]
[1742673806720,0.24721782,84242.0,84241.0,0.18320641]
[1742673807026,0.36594482,84242.0,84241.0,0.06447801]
[1742673807727,0.39794482,84242.0,84241.0,0.06447801]
[1742673807925,0.36494482,84242.0,84241.0,0.06447801]
[1742673808125,0.36594482,84242.0,84241.0,0.06447801]
[1742673808625,0.36494482,84242.0,84241.0,0.06347801]
[1742673808825,0.39794482,84242.0,84241.0,0.06447801]
[1742673809429,0.39794482,84242.0,84241.0,0.06347801]
[1742673809727,0.39794482,84242.0,84241.0,0.06447801]
[1742673812119,0.39694482,84242.0,84241.0,0.06347801]
[1742673812319,0.39794482,84242.0,84241.0,0.06447801]
[1742673812731,0.42824482,84242.0,84241.0,0.06447801]
[1742673812921,0.46064482,84242.0,84241.0,0.06447801]
[1742673813325,0.46064482,84242.0,84241.0,0.06347801]
[1742673815123,0.45964482,84242.0,84241.0,0.06347801]
[1742673815324,0.46164482,84242.0,84241.0,0.06347801]
[1742673815728,0.45964482,84242.0,84241.0,0.06347801]
[1742673815925,0.46164482,84242.0,84241.0,0.06347801]
[1742673816123,0.46264482,84242.0,84241.0,0.06347801]
[1742673816529,0.46164482,84242.0,84241.0,0.06347801]
[1742673816830,0.46064482,84242.0,84241.0,0.06347801]
[1742673818024,0.46164482,84242.0,84241.0,0.06347801]
[1742673823237,0.46164482,84242.0,84241.0,0.06287801]
[1742673823431,0.46164482,84242.0,84241.0,0.06351801]
[1742673824331,0.45964482,84242.0,84241.0,0.06351801]
[1742673824537,0.46164482,84242.0,84241.0,0.06351801]
[1742673825230,0.46264482,84242.0,84241.0,0.06351801]
[1742673826131,0.46164482,84242.0,84241.0,0.06351801]
[1742673826338,0.46264482,84242.0,84241.0,0.06351801]
[1742673827432,0.46064482,84242.0,84241.0,0.06351801]
[1742673827738,0.46264482,84242.0,84241.0,0.06351801]
[1742673833834,0.46264482,84242.0,84241.0,0.06287801]
[1742673834038,0.46264482,84242.0,84241.0,0.06347801]
[1742673837645,0.46264482,84242.0,84241.0,0.06287801]
[1742673837841,0.82344482,84242.0,84241.0,0.03177801]
[1742673838945,0.82344482,84242.0,84241.0,0.06397801]
[1742673839941,0.46264482,84242.0,84241.0,0.06397801]
[1742673840141,0.82344482,84242.0,84241.0,0.06397801]
[1742673841549,0.46264482,84242.0,84241.0,0.06397801]
[1742673841849,0.82344482,84242.0,84241.0,0.06397801]
[1742673845041,0.82344482,84242.0,84241.0,0.03177801]
[1742673849759,0.15877806,84242.0,84241.0,0.03177801]
[1742673849948,0.08647782,84242.0,84241.0,0.21230641]
[1742673850149,0.0325,84253.0,84252.0,0.1187129]
[1742673850341,0.11272,84254.0,84253.0,0.1187115]
[1742673850543,0.1136,84254.0,84253.0,0.1187115]
[1742673850748,0.24549998,84254.0,84253.0,0.1195515]
[1742673850949,0.36420998,84254.0,84253.0,0.00084]
[1742673851144,0.1187129,84252.0,84251.0,0.0633]
[1742673851349,0.1195129,84252.0,84251.0,0.0641]
[1742673851745,0.23820233,84252.0,84251.0,0.06414]
[1742673852563,0.23920233,84252.0,84251.0,0.06414]
[1742673853043,0.23920233,84252.0,84251.0,0.0633]
[1742673853247,0.27020233,84252.0,84251.0,0.0633]
[1742673853450,0.27020233,84252.0,84251.0,0.06414]
[1742673853650,0.27020233,84252.0,84251.0,0.0633]
[1742673853854,0.27020233,84252.0,84251.0,0.03244]
[1742673854158,0.69350233,84252.0,84251.0,0.0326]
[1742673854960,0.69350233,84252.0,84251.0,0.0316]
[1742673855462,0.69350233,84252.0,84251.0,0.0646]
[1742673856956,0.69450233,84252.0,84251.0,0.0646]
[1742673857353,0.69650233,84252.0,84251.0,0.0646]
[1742673858245,0.69550233,84252.0,84251.0,0.0646]
[1742673858552,0.69650233,84252.0,84251.0,0.0646]
[1742673858752,0.69450233,84252.0,84251.0,0.0646]
[1742673859052,0.33570233,84252.0,84251.0,0.0646]
[1742673859453,0.69650233,84252.0,84251.0,0.0646]
[1742673860263,0.69550233,84252.0,84251.0,0.0646]
[1742673860655,0.33470233,84252.0,84251.0,0.0646]
[1742673860856,0.69550233,84252.0,84251.0,0.0646]
[1742673870169,0.69550233,84252.0,84251.0,0.0316]
[1742673870667,0.69550233,84252.0,84251.0,0.0639]
[1742673871868,0.69650233,84252.0,84251.0,0.0639]
[1742673873267,0.69550233,84252.0,84251.0,0.0639]
[1742673873570,0.69650233,84252.0,84251.0,0.0316]
[1742673873872,0.1187255,84243.0,84242.0,0.0315]
[1742673874067,0.23204551,84243.0,84242.0,0.0625]
[1742673874658,0.41483775,84243.0,84242.0,0.0625]
[1742673876369,0.41483775,84243.0,84242.0,0.0635]
[1742673877167,0.41683775,84243.0,84242.0,0.0635]
[1742673877466,0.41683775,84243.0,84242.0,0.0627]
[1742673877773,0.41783775,84243.0,84242.0,0.0617]
[1742673878971,0.41783775,84243.0,84242.0,0.0302]
[1742673879164,0.41783775,84243.0,84242.0,0.0619]
[1742673879564,0.41683775,84243.0,84242.0,0.0619]
[1742673880568,0.41783775,84243.0,84242.0,0.0619]
[1742673880768,0.41583775,84243.0,84242.0,0.0619]
[1742673880968,0.41783775,84243.0,84242.0,0.0619]
[1742673881163,0.41683775,84243.0,84242.0,0.0619]
[1742673881365,0.41683775,84243.0,84242.0,0.0302]
[1742673885778,0.41783775,84243.0,84242.0,0.0302]
[1742673888374,0.118727,84242.0,84241.0,0.00025801]
[1742673888686,0.11932701,84242.0,84241.0,0.00017801]
[1742673888986,0.15062701,84242.0,84241.0,0.00017801]